bitfinex/quotes_SOLUSD_20251212
["timestamp","ask_amount","ask_price","bid_price","bid_amount"]
[1765529372786,4.42170819,137.8,137.78,7.92]
[1765529373000,4.42170819,137.8,137.78,8.63]
[1765529373301,4.82603133,137.82,137.78,8.63]
[1765529374193,0.12,137.81,137.78,8.63]
[1765529374400,11.79754914,137.82,137.79,0.71]
[1765529375791,7.25584095,137.82,137.79,0.71]
[1765529376586,11.67754914,137.82,137.79,0.71]
[1765529377486,11.79754914,137.82,137.79,0.71]
[1765529378000,10.20851407,137.82,137.79,0.71]
[1765529379307,7.37584095,137.82,137.79,0.71]
[1765529379606,10.20851407,137.82,137.79,0.71]
[1765529379980,7.25584095,137.82,137.79,0.71]
[1765529380278,2.97483469,137.85,137.79,10.80005297]
[1765529380499,2.97483469,137.85,137.8,0.71]
[1765529380685,7.25497654,137.84,137.81,7.92]
[1765529381194,7.25497654,137.84,137.81,8.63]
[1765529381703,10.08764966,137.84,137.81,8.63]
[1765529381910,2.83267312,137.83,137.81,7.92]
[1765529382401,7.37497654,137.84,137.81,7.92]
[1765529382607,2.83267312,137.82,137.81,7.92]
[1765529383285,10.08851407,137.82,137.81,7.92]
[1765529383813,7.25584095,137.82,137.81,7.92]
[1765529384887,10.08851407,137.82,137.81,7.92]
[1765529386213,7.25584095,137.82,137.81,7.92]
[1765529387700,7.25531451,137.83,137.81,8.63]
[1765529387905,7.25531451,137.83,137.82,0.71]
[1765529388112,7.25426187,137.85,137.82,0.71]
[1765529388811,7.37426187,137.85,137.82,0.71]
[1765529389922,10.08635245,137.85,137.82,0.71]
[1765529390423,25.38866064,137.86,137.82,0.71]
[1765529390724,28.22075122,137.86,137.82,0.71]
[1765529391412,28.34075122,137.86,137.82,0.71]
[1765529392416,28.22075122,137.86,137.82,0.71]
[1765529392622,25.38866064,137.86,137.82,0.71]
[1765529393400,28.22075122,137.86,137.82,0.71]
[1765529394124,7.25373567,137.86,137.82,0.71]
[1765529394909,7.25373567,137.86,137.82,7.96568414]
[1765529395415,7.25373567,137.86,137.83,0.71]
[1765529396122,7.35320954,137.87,137.83,0.71]
[1765529396504,7.35320954,137.87,137.83,10.79719788]
[1765529396705,0.1,137.87,137.84,2.83209058]
[1765529397019,0.1,137.87,137.85,8.63]
[1765529397421,0.1,137.87,137.86,0.71]
[1765529398418,0.1,137.87,137.82,7.25544923]
[1765529398419,13.1470912,137.87,137.82,7.25544923]
[1765529398598,0.1,137.87,137.83,7.92]
[1765529398798,0.1,137.87,137.83,8.63]
[1765529399028,0.1,137.87,137.84,0.71]
[1765529399626,7.35320954,137.87,137.84,0.71]
[1765529401223,0.1,137.87,137.84,10.79658947]
[1765529401441,0.1,137.87,137.86,2.83209058]
[1765529401736,0.1,137.87,137.86,11.46209058]
[1765529402237,0.1,137.87,137.86,8.63]
[1765529402415,0.1,137.87,137.86,11.46209058]
[1765529402806,0.1,137.87,137.86,18.71582625]
[1765529404412,0.1,137.87,137.86,40.57286237]
[1765529405224,0.1,137.87,137.86,27.52577117]
[1765529407209,0.1,137.87,137.86,27.66793274]
[1765529408216,0.1,137.89,137.86,27.81009431]
[1765529408534,0.1,137.89,137.88,11.6420355]
[1765529408736,0.1,137.89,137.88,12.63635864]
[1765529408940,0.1,137.89,137.88,12.3520355]
[1765529409429,0.1,137.89,137.88,22.56703612]
[1765529409835,0.1,137.89,137.88,13.7570912]
[1765529410342,0.1,137.89,137.88,13.0470912]
[1765529410520,0.1,137.89,137.88,8.61]
[1765529411926,0.1,137.89,137.88,15.86268349]
[1765529412331,0.1,137.89,137.88,28.90977469]
[1765529413330,0.1,137.89,137.88,40.55181019]
[1765529415255,0.1,137.89,137.88,27.50471899]
[1765529415634,0.1,137.89,137.88,27.78904213]
[1765529416460,0.1,137.96,137.93,7.25005437]
[1765529416632,0.1,137.96,137.94,7.9]
[1765529417450,0.22,137.96,137.94,7.9]
[1765529417628,2.97425215,137.95,137.94,7.9]
[1765529417955,0.28432314,137.94,137.91,7.9]
[1765529418167,0.40432314,137.94,137.91,7.9]
[1765529418457,10.20250139,137.93,137.91,7.9]
[1765529418656,7.37041081,137.93,137.91,7.9]
[1765529418856,0.12,137.92,137.91,7.9]
[1765529420563,10.19849426,137.92,137.91,7.9]
[1765529421956,10.19849426,137.92,137.87,20.30022058]
[1765529422252,0.12,137.91,137.89,7.9]
[1765529422652,7.25005437,137.93,137.89,8.6]
[1765529423050,7.37005437,137.93,137.89,8.6]
[1765529424176,7.37067988,137.92,137.89,8.6]
[1765529424344,7.25067988,137.92,137.89,8.6]
[1765529425243,7.25005437,137.93,137.9,0.7]
[1765529425951,7.37005437,137.93,137.9,0.7]
[1765529426353,0.12,137.94,137.9,0.7]
[1765529426690,10.1974249,137.95,137.9,0.7]
[1765529426864,10.1974249,137.95,137.9,7.9515452]
[1765529427365,0.12,137.94,137.9,7.9515452]
[1765529427943,7.36963407,137.94,137.9,7.9515452]
[1765529428445,7.36963407,137.94,137.91,0.7]
[1765529428742,7.36963407,137.94,137.92,7.9]
[1765529431344,25.59021227,137.96,137.92,8.6]
[1765529431540,25.47021227,137.96,137.92,8.6]
[1765529431741,0.12,137.95,137.92,8.6]
[1765529433779,0.12,137.95,137.92,15.85055642]
[1765529434078,7.34886878,137.96,137.92,15.85055642]
[1765529434376,7.46886878,137.96,137.92,15.85055642]
[1765529435572,0.22,137.96,137.92,17.97847064]
[1765529435747,0.1,137.96,137.93,3.52791422]
[1765529436257,0.1,137.96,137.94,0.7]
[1765529436457,0.1,137.96,137.95,7.9]
[1765529437065,7.46847781,137.96,137.95,7.9]
[1765529439154,10.58071517,137.96,137.95,7.9]
[1765529439566,0.28432314,137.95,137.9,0.7]
[1765529439755,0.28432314,137.95,137.92,7.9]
[1765529439756,2.82791422,137.94,137.92,7.9]
[1765529439959,0.12,137.94,137.92,7.9]
[1765529440855,7.36968873,137.94,137.92,7.9]
[1765529441075,7.24916629,137.95,137.92,7.9]
[1765529441275,7.24916629,137.95,137.93,0.7]
[1765529441473,7.24916629,137.95,137.92,7.9]
[1765529441703,7.24916629,137.95,137.92,8.6]
[1765529443062,11.78741153,137.95,137.92,7.9]
[1765529443266,0.40432314,137.94,137.92,7.9]
[1765529443462,4.70256838,137.94,137.92,7.9]
[1765529443674,4.82256838,137.94,137.92,7.9]
[1765529443850,0.40432314,137.94,137.92,7.9]
[1765529446284,7.25005437,137.93,137.92,7.9]
[1765529448580,7.65404755,137.94,137.92,7.9]
[1765529449077,7.24972441,137.94,137.92,7.9]
[1765529450584,7.36972441,137.94,137.92,7.9]
[1765529451671,61.4,137.92,137.86,0.72]
[1765529451883,61.68432314,137.91,137.84,7.25465211]
[1765529452182,4.41824524,137.89,137.85,7.9]
[1765529452488,68.65301672,137.88,137.85,8.62]
[1765529452856,73.19465426,137.88,137.85,7.9]
[1765529453381,68.65301672,137.88,137.85,8.62]
[1765529453681,68.65301672,137.88,137.86,0.72]
[1765529454381,61.4,137.88,137.86,0.72]
[1765529455068,68.65273133,137.88,137.85,8.62]
[1765529456167,61.4,137.88,137.86,0.72]
[1765529458687,61.4,137.87,137.86,0.72]
[1765529458889,61.4,137.87,137.86,12.39537321]
[1765529461074,61.4,137.87,137.86,21.20531813]
[1765529461290,61.4,137.89,137.88,13.0470912]
[1765529461475,61.4,137.89,137.88,25.36872874]
[1765529461672,61.4,137.89,137.88,26.08872874]
[1765529462072,61.4,137.89,137.88,33.34141223]
[1765529462274,61.4,137.92,137.88,33.34141223]
[1765529462601,61.4,137.92,137.89,5.14163754]
[1765529463299,61.4,137.92,137.89,0.72]
[1765529463800,61.4,137.92,137.89,5.14163754]
[1765529464498,61.4,137.92,137.89,11.67372254]
[1765529464704,61.4,137.92,137.89,12.39372254]
[1765529465797,61.4,137.92,137.9,0.72]
[1765529466021,61.4,137.92,137.91,7.9]
[1765529466498,61.4,137.92,137.91,13.04163754]
[1765529467085,61.4,137.92,137.91,7.9]
[1765529467295,68.65058004,137.92,137.91,7.9]
[1765529467495,61.4,137.92,137.91,7.9]
[1765529470280,7.25018251,137.93,137.91,7.9]
[1765529470505,7.37018251,137.93,137.91,7.9]
[1765529471391,7.25018251,137.93,137.91,7.9]
[1765529472695,7.37018251,137.93,137.91,7.9]
[1765529474499,7.25018251,137.93,137.91,7.9]
[1765529475205,7.25018251,137.93,137.91,8.62]
[1765529475717,7.24968647,137.94,137.92,0.72]
[1765529476387,61.4,137.93,137.92,0.72]
[1765529477681,7.3489038,137.96,137.92,12.39221758]
[1765529477905,0.1,137.96,137.94,4.42163754]
[1765529478108,0.1,137.96,137.94,12.32163754]
[1765529478498,0.1,137.96,137.94,8.58]
[1765529478798,0.38432314,137.96,137.94,7.9]
[1765529479002,0.50432314,137.96,137.94,7.9]
[1765529479590,7.24900326,137.95,137.94,7.9]
[1765529483285,7.36900326,137.95,137.94,7.9]
[1765529483485,7.6533264,137.95,137.94,7.9]
[1765529484512,7.5333264,137.95,137.94,7.9]
[1765529484917,7.6533264,137.95,137.94,7.9]
[1765529485211,7.24900326,137.95,137.94,8.58]
[1765529485703,7.63280095,137.96,137.94,8.58]
[1765529486294,0.1,137.96,137.94,12.31633422]
[1765529486494,0.1,137.96,137.95,5.09633422]
[1765529488310,0.1,137.96,137.95,0.68]
[1765529491288,0.1,137.96,137.95,5.09633422]
[1765529491714,0.1,137.96,137.91,13.0470912]
[1765529491893,0.28432314,137.95,137.92,8.58]
[1765529492100,0.22,137.96,137.93,0.68]
[1765529493116,0.22,137.96,137.92,12.99633422]
[1765529493117,7.24900326,137.95,137.92,12.99633422]
[1765529493816,7.24900326,137.95,137.92,12.31633422]
[1765529494014,7.24900326,137.95,137.93,0.68]
[1765529494926,0.1,137.96,137.93,0.68]
[1765529495515,0.1,137.96,137.93,5.09633422]
[1765529495707,7.34852465,137.96,137.94,0.68]
[1765529496522,0.1,137.96,137.94,0.68]
[1765529497215,7.24801848,137.97,137.95,7.9]
[1765529499920,7.24801848,137.97,137.95,8.58]
[1765529500122,61.4,137.96,137.95,8.58]
[1765529502414,0.1,137.98,137.95,18.65441549]
[1765529502717,0.1,137.98,137.97,2.82541223]
[1765529503229,0.1,137.98,137.97,3.49541223]
[1765529503524,0.1,137.98,137.97,0.67]
[1765529503824,0.1,137.98,137.95,15.14900326]
[1765529503825,7.46756322,137.98,137.95,7.9]
[1765529504022,0.1,137.98,137.96,0.67]
[1765529504329,0.1,137.98,137.96,3.49541223]
[1765529504726,0.1,137.98,137.97,0.67]
[1765529505498,0.1,137.98,137.96,2.82541223]
[1765529505704,0.1,137.98,137.96,3.49541223]
[1765529506517,0.1,137.98,137.97,0.67]
[1765529506710,0.1,137.98,137.97,3.49541223]
[1765529508411,0.22,137.98,137.95,7.9]
[1765529508605,0.22,137.98,137.95,8.57]
[1765529509125,0.1,137.98,137.95,8.57]
[1765529509434,7.34742716,137.98,137.95,8.57]
[1765529509608,7.34742716,137.98,137.95,11.39541223]
[1765529511332,0.1,137.98,137.97,2.82541223]
[1765529511833,0.1,137.98,137.97,3.49541223]
[1765529514937,0.1,137.98,137.97,0.67]
[1765529515121,0.1,137.98,137.96,2.82541223]
[1765529515511,0.1,137.98,137.96,3.49541223]
[1765529517715,0.1,137.98,137.96,3.49488654]
[1765529518015,61.4,137.97,137.96,3.49488654]
[1765529518828,61.4,137.97,137.95,10.72488654]
[1765529519118,61.4,137.97,137.95,11.39488654]
[1765529519818,61.4,137.97,137.96,0.67]
[1765529521148,61.4,137.97,137.95,8.57]
[1765529521320,61.4,137.97,137.95,11.39488654]
[1765529522347,61.4,137.97,137.95,8.57]
[1765529522530,61.4,137.97,137.95,11.39488654]
[1765529522845,61.4,137.97,137.96,0.67]
[1765529523145,61.4,137.97,137.96,3.49488654]
[1765529523726,0.1,137.98,137.96,3.49488654]
[1765529526957,0.1,137.98,137.96,0.67]
[1765529527250,0.1,137.98,137.96,3.49488654]
[1765529529156,0.1,137.98,137.97,2.82488654]
[1765529529643,0.1,137.98,137.96,3.49488654]
[1765529529842,61.4,137.97,137.96,2.82488654]
[1765529530054,61.4,137.97,137.96,3.49488654]
[1765529530555,61.4,137.97,137.96,2.82488654]
[1765529530727,61.4,137.97,137.95,10.72488654]
[1765529530928,61.4,137.97,137.95,7.9]
[1765529531326,61.52,137.96,137.91,2.82488654]
[1765529531652,61.4,137.95,137.93,2.82488654]
[1765529531953,61.4,137.95,137.94,7.9]
[1765529532450,61.4,137.95,137.94,11.39488654]
[1765529532657,61.4,137.95,137.94,10.72488654]
[1765529533651,61.4,137.95,137.94,7.9]
[1765529533862,68.76900326,137.95,137.94,7.9]
[1765529534840,68.64900326,137.95,137.94,7.9]
[1765529541547,7.24900326,137.95,137.94,7.9]
[1765529541758,7.24865656,137.96,137.94,8.57]
[1765529542149,7.24865656,137.96,137.94,7.9]
[1765529542871,0.12,137.96,137.94,7.9]
[1765529543457,0.40432314,137.96,137.94,7.9]
[1765529543858,0.12,137.95,137.94,7.9]
[1765529544876,7.6533264,137.95,137.94,7.9]
[1765529545272,7.36900326,137.95,137.94,7.9]
[1765529546364,7.24900326,137.95,137.94,7.9]
[1765529549482,7.53280095,137.96,137.94,7.9]
[1765529549665,7.65280095,137.96,137.94,7.9]
[1765529551583,7.53280095,137.96,137.94,7.9]
[1765529552156,7.53280095,137.96,137.94,8.57]
[1765529552578,7.53280095,137.96,137.94,7.9]
[1765529552883,7.24847781,137.96,137.94,8.57]
[1765529553587,61.4,137.95,137.94,8.57]
[1765529554333,61.4,137.95,137.94,7.9]
[1765529558885,68.64900326,137.95,137.94,7.9]
[1765529559468,7.24900326,137.95,137.94,7.9]
[1765529559993,25.36862593,137.97,137.94,7.9]
[1765529564794,7.24795245,137.97,137.94,12.31534711]
[1765529566667,7.34742716,137.98,137.96,4.41534711]
[1765529567797,0.1,137.98,137.94,15.14946595]
[1765529567982,0.1,137.98,137.96,4.41534711]
[1765529568182,0.1,137.98,137.94,15.14946595]
[1765529568392,0.1,137.98,137.96,4.41534711]
[1765529570995,0.1,137.98,137.97,7.9]
[1765529575397,0.1,137.98,137.97,12.31534711]
[1765529575996,0.1,137.98,137.97,19.56329956]
[1765529576194,0.1,137.98,137.97,32.78859159]
[1765529579495,0.1,137.98,137.97,41.42033568]
[1765529579701,0.1,137.98,137.97,32.61039076]
[1765529580484,0.1,137.98,137.97,12.31534711]
[1765529582002,0.1,137.98,137.97,19.56329956]
[1765529582390,0.1,137.98,137.97,12.31534711]
[1765529583193,61.5,137.98,137.97,12.31534711]
[1765529583897,61.5,137.98,137.97,7.9]
[1765529584098,68.64795245,137.97,137.86,36.26754962]
[1765529584327,68.64795245,137.97,137.93,4.41296708]
[1765529584607,68.64795245,137.97,137.94,7.9]
[1765529586088,0.28432314,137.96,137.94,7.9]
[1765529587204,7.24900326,137.95,137.94,7.9]
[1765529591844,7.5333264,137.95,137.94,7.9]
[1765529592605,7.24900326,137.95,137.94,7.9]
[1765529592900,7.53294761,137.96,137.94,7.9]
[1765529593804,7.24862447,137.96,137.94,7.9]
[1765529594892,0.28432314,137.95,137.94,7.9]
[1765529596807,7.5333264,137.95,137.94,7.9]
[1765529598613,7.24900326,137.95,137.94,7.9]
[1765529599018,7.24848271,137.96,137.94,7.9]
[1765529600616,7.24810636,137.97,137.94,7.9]
[1765529602391,123.59467618,137.98,137.94,12.31296708]
[1765529602595,110.54758498,137.98,137.94,12.31296708]
[1765529602821,7.34758498,137.98,137.94,12.31296708]
[1765529603798,7.34758498,137.98,137.94,19.56248582]
[1765529605325,7.34758498,137.98,137.95,4.41296708]
[1765529606613,0.1,137.98,137.95,4.41296708]
[1765529606924,61.4,137.97,137.95,4.41296708]
[1765529609128,61.4,137.96,137.95,4.41296708]
[1765529609524,61.5,137.98,137.95,11.66197034]
[1765529609724,61.5,137.98,137.96,4.41296708]
[1765529609930,61.5,137.98,137.97,7.9]
[1765529612030,61.5,137.98,137.97,12.31296708]
[1765529612729,61.5,137.98,137.97,19.56091953]
[1765529612927,0.1,137.98,137.97,19.56091953]
[1765529613731,0.1,137.98,137.97,32.78383153]
[1765529614517,0.1,137.98,137.97,12.31296708]
[1765529615030,0.1,137.98,137.97,7.9]
[1765529621138,0.1,137.98,137.96,7.9]
[1765529621518,61.4,137.97,137.96,7.9]
[1765529623324,61.4,137.97,137.96,12.31362324]
[1765529624043,61.4,137.97,137.96,10.72455222]
[1765529624730,7.34785123,137.98,137.96,10.72455222]
[1765529624731,0.1,137.98,137.96,10.72455222]
[1765529627228,0.1,137.98,137.97,2.82455222]
[1765529630445,0.1,137.98,137.97,10.07250467]
[1765529635941,0.1,137.98,137.97,2.82455222]
[1765529639059,0.1,137.98,137.97,18.88244959]
[1765529639631,0.1,137.98,137.97,10.07250467]
[1765529639835,0.1,137.98,137.97,2.82455222]
[1765529641755,0.1,137.98,137.97,10.07250467]
[1765529645436,61.5,137.98,137.97,10.07250467]
[1765529646528,61.5,137.98,137.97,18.88244959]
[1765529647963,61.5,137.98,137.97,2.82455222]
[1765529648666,61.5,137.98,137.96,15.14829868]
[1765529648866,61.5,137.98,137.97,2.82434592]
[1765529649436,61.5,137.98,137.96,15.14829868]
[1765529649437,61.5,137.98,137.96,17.9726446]
[1765529650753,61.5,137.98,137.97,2.82434592]
[1765529651962,61.5,137.98,137.97,10.07229837]
[1765529653986,61.5,137.98,137.97,21.70658921]
[1765529654284,61.5,137.98,137.97,34.75368041]
[1765529655166,61.5,138.0,137.99,21.85703612]
[1765529655469,0.1,138.0,137.99,32.58138204]
[1765529655765,0.1,138.0,137.99,23.77143712]
[1765529656169,0.1,138.0,137.99,20.9470912]
[1765529656471,0.1,138.0,137.99,23.77143712]
[1765529657457,0.1,138.0,137.99,7.9]
[1765529658973,0.1,138.0,137.99,10.72434592]
[1765529659167,0.1,138.0,137.99,17.97124786]
[1765529660456,61.5,138.0,137.99,17.97124786]
[1765529660652,61.5,138.0,137.99,39.82828398]
[1765529661165,61.5,138.0,137.99,37.00393806]
[1765529661360,61.5,138.0,137.99,39.82828398]
[1765529662252,61.5,138.0,137.99,37.00393806]
[1765529662481,61.5,138.0,137.99,39.82828398]
[1765529663987,61.5,138.0,137.99,31.01833906]
[1765529667015,61.5,138.0,137.99,28.19399314]
[1765529667227,61.5,138.0,137.99,31.01833906]
[1765529670117,0.1,138.0,137.97,7.24765167]
[1765529670413,0.1,138.0,137.98,10.72434592]
[1765529670616,0.1,138.0,137.99,2.82434592]
[1765529671288,0.1,138.0,137.99,10.07124786]
[1765529673106,0.1,138.0,137.99,7.24690194]
[1765529673304,0.1,138.0,137.99,10.07124786]
[1765529673893,0.1,138.0,137.99,7.24690194]
[1765529674094,0.1,138.0,137.99,10.07124786]
[1765529676613,0.1,138.0,137.99,7.24690194]
[1765529677816,0.1,138.0,137.98,17.97158337]
[1765529679919,0.1,138.0,137.98,15.14723745]
[1765529680114,0.1,138.0,137.98,17.97158337]
[1765529680304,0.1,138.0,137.98,15.14723745]
[1765529680908,0.1,138.0,137.98,7.9]
[1765529681114,61.4,137.99,137.98,7.9]
[1765529683393,68.64690194,137.99,137.98,7.9]
[1765529683612,7.24690194,137.99,137.98,7.9]
[1765529684130,7.53122508,137.99,137.98,7.9]
[1765529684305,7.53122508,137.99,137.94,2.82409076]
[1765529684500,7.53122508,137.99,137.95,7.9]
[1765529685024,7.53122508,137.99,137.95,10.72409076]
[1765529686003,7.53122508,137.99,137.95,12.31406154]
[1765529687606,7.53122508,137.99,137.95,7.9]
[1765529687806,7.53122508,137.99,137.95,12.31406154]
[1765529690129,68.64754609,137.98,137.95,12.31406154]
[1765529691410,68.64754609,137.98,137.96,4.41406154]
[1765529691818,68.64754609,137.98,137.95,12.31406154]
[1765529694935,68.64754609,137.98,137.95,7.9]
[1765529695619,68.64754609,137.98,137.95,12.31406154]
[1765529696014,61.4,137.97,137.95,12.31406154]
[1765529697937,68.64804182,137.97,137.95,12.31406154]
[1765529701338,61.4,137.97,137.96,4.41406154]
[1765529701842,61.4,137.97,137.95,12.31406154]
[1765529702020,61.4,137.96,137.95,12.31406154]
[1765529702221,7.24746924,137.98,137.95,7.9]
[1765529702632,27.54451824,137.98,137.95,7.9]
[1765529703033,45.66308614,137.98,137.95,7.9]
[1765529703625,61.68432314,137.97,137.95,7.9]
[1765529705318,7.24847781,137.96,137.95,7.9]
[1765529705721,69.58432314,137.97,137.95,7.9]
[1765529705926,68.64805508,137.97,137.95,7.9]
[1765529708046,61.4,137.96,137.95,7.9]
[1765529711145,61.4,137.96,137.95,12.31406154]
[1765529713837,7.24805508,137.97,137.95,12.31406154]
[1765529715229,7.24805508,137.97,137.95,12.31422569]
[1765529716550,7.9,137.98,137.96,4.41422569]
[1765529716744,7.9,137.98,137.97,4.41422569]
[1765529716947,7.24697031,137.99,137.97,4.41422569]
[1765529717245,7.24697031,137.99,137.98,7.9]
[1765529718147,7.34637681,138.0,137.98,7.9]
[1765529719149,15.24637681,138.0,137.98,7.9]
[1765529722456,15.24637681,138.0,137.98,12.31422569]
[1765529722836,68.64690194,137.99,137.98,12.31422569]
[1765529725360,7.34637681,138.0,137.98,12.31422569]
[1765529726151,7.34637681,138.0,137.98,7.9]
[1765529726549,15.24637681,138.0,137.98,7.9]
[1765529728665,61.4,137.99,137.98,7.9]
[1765529729470,68.64690194,137.99,137.98,7.9]
[1765529734573,7.24690194,137.99,137.98,7.9]
[1765529735370,7.24690194,137.99,137.97,4.41422569]
[1765529735568,7.24690194,137.99,137.98,7.9]
[1765529743055,7.53122508,137.99,137.98,7.9]
[1765529743467,15.43122508,137.99,137.98,7.9]
[1765529747878,0.28432314,137.98,137.94,2.82582407]
[1765529748082,0.28432314,137.98,137.95,7.9]
[1765529749085,28.18998088,137.99,137.95,7.9]
[1765529749086,0.28432314,137.96,137.95,7.9]
[1765529749471,7.53280095,137.96,137.95,7.9]
[1765529751373,7.24847781,137.96,137.95,7.9]
[1765529759084,0.28432314,137.97,137.95,7.9]
[1765529759283,7.9,137.96,137.95,7.9]
[1765529761302,7.24820212,137.97,137.95,10.72582407]
[1765529761601,15.14820212,137.97,137.95,10.72582407]
[1765529761977,15.14820212,137.97,137.95,7.9]
[1765529762306,15.14820212,137.97,137.95,10.72582407]
[1765529764294,61.4,137.96,137.95,10.72582407]
[1765529766496,61.4,137.96,137.95,7.9]
[1765529770176,15.14820212,137.97,137.95,7.9]
[1765529773594,15.14820212,137.97,137.94,2.82582407]
[1765529773795,15.14820212,137.97,137.95,7.92]
[1765529776406,15.14820212,137.97,137.95,10.74582407]
[1765529779626,15.14820212,137.97,137.95,10.74539405]
[1765529782122,7.2476378,137.98,137.96,2.82539405]
[1765529782521,25.36565321,137.98,137.96,2.82539405]
[1765529783802,25.36565321,137.98,137.97,2.82539405]
[1765529784023,0.1,138.0,137.97,2.82539405]
[1765529784218,0.1,138.0,137.99,2.82539405]
[1765529793005,0.1,138.0,137.99,10.07229599]
[1765529793901,0.1,138.0,137.99,31.82167069]
[1765529795026,0.1,138.01,137.99,31.82167069]
[1765529795216,0.1,138.01,138.0,2.82539405]
[1765529795617,0.1,138.01,138.0,24.57319208]
[1765529796145,0.1,138.01,138.0,31.81956889]
[1765529798533,0.1,138.01,138.0,44.86666009]
[1765529803535,0.1,138.01,138.0,53.67660501]
[1765529805716,0.1,138.01,138.0,61.57660501]
[1765529806032,20.0,138.05,138.0,79.69254703]
[1765529806242,20.0,138.05,138.04,5.6507881]
[1765529806426,20.0,138.05,138.04,13.5507881]
[1765529806626,20.0,138.05,138.04,10.72539405]
[1765529808044,20.0,138.05,138.04,12.30684569]
[1765529808245,20.0,138.05,138.04,23.9579684]
[1765529809019,20.0,138.05,138.04,19.55112271]
[1765529809521,20.0,138.05,138.04,23.9579684]
[1765529809737,20.0,138.05,138.04,43.9579684]
[1765529809926,20.0,138.05,138.04,39.55112271]
[1765529810333,20.0,138.05,138.04,15.14427702]
[1765529810536,20.0,138.05,138.04,19.55112271]
[1765529811941,20.0,138.05,138.04,15.14427702]
[1765529812127,20.0,138.05,138.04,19.55112271]
[1765529813720,20.0,138.05,138.04,7.9]
[1765529813926,20.0,138.05,138.04,12.30745946]
[1765529819952,20.0,138.05,138.04,7.9]
[1765529820150,27.24375226,138.05,138.04,7.9]
[1765529822247,27.24375226,138.05,138.03,4.40745946]
[1765529822449,27.24375226,138.05,138.04,7.9]
[1765529824045,27.24375226,138.05,138.02,7.9]
[1765529825250,45.35313291,138.05,138.02,7.9]
[1765529827430,0.14216157,138.04,138.02,7.9]
[1765529827842,0.14216157,138.04,137.92,36.25250959]
[1765529827843,0.14216157,138.02,137.97,4.40745946]
[1765529828047,0.14216157,138.02,137.97,7.9]
[1765529828358,4.6917826,138.02,137.97,12.30745946]
[1765529828748,4.40745946,138.01,137.97,7.9]
[1765529829052,99.14888486,138.03,137.98,4.40745946]
[1765529829233,0.28432314,138.02,137.99,4.40745946]
[1765529829443,7.24539184,138.02,138.0,12.30745946]
[1765529829957,7.24539184,138.02,138.0,7.9]
[1765529831260,0.14216157,138.01,138.0,7.9]
[1765529831452,7.38801331,138.01,138.0,7.9]
[1765529832064,15.28801331,138.01,138.0,7.9]
[1765529833362,7.53017488,138.01,138.0,7.9]
[1765529838840,11.93763434,138.01,138.0,7.9]
[1765529839041,11.93763434,138.01,137.95,4.40745946]
[1765529839254,61.54216157,138.0,137.97,7.9]
[1765529839644,0.14216157,137.99,137.97,7.9]
[1765529839839,61.4,137.98,137.97,7.9]
[1765529840064,0.14216157,137.99,137.97,7.9]
[1765529841266,7.24742716,137.98,137.97,7.9]
[1765529849472,7.5317503,137.98,137.97,7.9]
[1765529850576,0.28432314,137.97,137.89,26.02991707]
[1765529850870,0.28432314,137.97,137.92,4.41443097]
[1765529851249,25.36599506,137.98,137.93,11.66435088]
[1765529851452,25.36599506,137.98,137.94,7.92]
[1765529856275,68.64803071,137.97,137.94,7.92]